lending/lending_fUSD_20260310
["ID","MTS","AMOUNT","RATE_DAILY","PERIOD"]
[408130578,1773161474585,-5995.0,0.00019027,2]
[408130579,1773161474595,-365.59219616,0.00019726,2]
[408130580,1773161474605,-500.0,0.00019726,2]
[408130581,1773161474615,-816.57,0.00019726,2]
[408130582,1773161474626,-500.0,0.00019726,2]
[408130583,1773161474637,-747.63,0.00019726,2]
[408130584,1773161474647,-500.0,0.00019726,2]
[408130585,1773161474657,-816.57,0.00019726,2]
[408130586,1773161474667,-500.0,0.00019726,2]
[408130587,1773161474677,-747.63,0.00019726,2]
[408130588,1773161474687,-500.0,0.00019726,2]
[408130589,1773161474697,-816.57,0.00019726,2]
[408130590,1773161474708,-500.0,0.00019726,2]
[408130591,1773161474718,-500.0,0.00019726,2]
[408130592,1773161474728,-2221.92,0.00019726,2]
[408130593,1773161474738,-747.63,0.00019726,2]
[408130594,1773161474748,-500.0,0.00019726,2]
[408130595,1773161474757,-816.7810941,0.00019726,2]
[408130596,1773161474767,-500.0,0.00019726,2]
[408130597,1773161474779,-2221.92,0.00019726,2]
[408130598,1773161474792,-500.0,0.00019726,2]
[408130599,1773161474802,-747.63,0.00019726,2]
[408130600,1773161474812,-500.0,0.00019726,2]
[408130601,1773161474822,-2221.92,0.00019726,2]
[408130602,1773161474832,-500.0,0.00019726,2]
[408130603,1773161474841,-577.66549714,0.00019726,2]
[408130604,1773161474851,-747.63,0.00019726,2]
[408130605,1773161474861,-500.0,0.00019726,2]
[408130606,1773161474871,-500.0,0.00019726,2]
[408130607,1773161474881,-2221.92,0.00019726,2]
[408130608,1773161474891,-500.0,0.00019726,2]
[408130609,1773161474901,-500.0,0.00019726,2]
[408130610,1773161474911,-2221.92,0.00019726,2]
[408130611,1773161474921,-500.0,0.00019726,2]
[408130612,1773161474931,-500.0,0.00019726,2]
[408130613,1773161474941,-371.53678773,0.00019726,2]
[408130614,1773161474950,-500.0,0.00019726,2]
[408130615,1773161474960,-500.0,0.00019726,2]
[408130616,1773161474970,-500.0,0.00019726,2]
[408130617,1773161474981,-500.0,0.00019726,2]
[408130618,1773161474992,-500.0,0.00019726,2]
[408130619,1773161475003,-500.0,0.00019726,2]
[408130620,1773161475013,-500.0,0.00019726,2]
[408130621,1773161475023,-2221.92,0.00019726,2]
[408130622,1773161475033,-500.0,0.00019726,2]
[408130623,1773161475043,-500.0,0.00019726,2]
[408130624,1773161475053,-534.95,0.00019726,2]
[408130625,1773161475063,-552.02673523,0.00019726,2]
[408130626,1773161475073,-500.0,0.00019726,2]
[408130627,1773161475084,-2221.92,0.00019726,2]
[408130628,1773161475096,-500.0,0.00019726,2]
[408130629,1773161475107,-534.95,0.00019726,2]
[408130630,1773161475117,-500.0,0.00019726,2]
[408130631,1773161475127,-2221.92,0.00019726,2]
[408130632,1773161475139,-500.0,0.00019726,2]
[408130633,1773161475150,-534.95,0.00019726,2]
[408130634,1773161475162,-2221.92,0.00019726,2]
[408130635,1773161475173,-500.0,0.00019726,2]
[408130636,1773161475183,-500.0,0.00019726,2]
[408130637,1773161475195,-534.95,0.00019726,2]
[408130638,1773161475207,-2221.92,0.00019726,2]
[408130639,1773161475219,-500.0,0.00019726,2]
[408130640,1773161475231,-500.0,0.00019726,2]
[408130641,1773161475242,-534.95,0.00019726,2]
[408130642,1773161475255,-500.0,0.00019726,2]
[408130643,1773161475266,-2221.92,0.00019726,2]
[408130644,1773161475278,-500.0,0.00019726,2]
[408130645,1773161475289,-534.95,0.00019726,2]
[408130646,1773161475299,-2221.92,0.00019726,2]
[408130647,1773161475309,-500.0,0.00019726,2]
[408130648,1773161475320,-500.0,0.00019726,2]
[408130649,1773161475330,-534.95,0.00019726,2]
[408130650,1773161475341,-2221.92,0.00019726,2]
[408130651,1773161475351,-507.65049834,0.00019726,2]
[408130652,1773161475362,-500.0,0.00019726,2]
[408130653,1773161475372,-534.95,0.00019726,2]
[408130654,1773161475382,-2221.92,0.00019726,2]
[408130655,1773161475392,-500.0,0.00019726,2]
[408130656,1773161475403,-500.0,0.00019726,2]
[408130657,1773161475414,-3162.68,0.00019726,2]
[408130658,1773161475425,-534.95,0.00019726,2]
[408130659,1773161475435,-2221.92,0.00019726,2]
[408130660,1773161475446,-500.0,0.00019726,2]
[408130661,1773161475457,-500.0,0.00019726,2]
[408130662,1773161475468,-3162.68,0.00019726,2]
[408130663,1773161475478,-2221.92,0.00019726,2]
[408130664,1773161475489,-534.95,0.00019726,2]
[408130665,1773161475500,-500.0,0.00019726,2]
[408130666,1773161475511,-500.0,0.00019726,2]
[408130667,1773161475521,-3162.68,0.00019726,2]
[408130668,1773161475532,-500.0,0.00019726,2]
[408130669,1773161475542,-500.0,0.00019726,2]
[408130670,1773161475552,-1676.07388767,0.00019726,2]
[408130671,1773161475599,-1486.60611233,0.00019726,2]
[408130672,1773161475610,-500.0,0.00019726,2]
[408130673,1773161475621,-747.63,0.00019726,2]
[408130674,1773161475631,-1221.79542857,0.00019726,2]
[408130675,1773161475644,-1000.12457143,0.00019726,2]
[408130676,1773161475654,-500.0,0.00019726,2]
[408130677,1773161475664,-976.5,0.00019726,2]
[408130678,1773161475674,-534.95,0.00019726,2]
[408130679,1773161475685,-500.0,0.00019726,2]
[408130680,1773161475696,-3162.68,0.00019726,2]
[408130681,1773161475707,-500.0,0.00019726,2]
[408130682,1773161475717,-747.63,0.00019726,2]
[408130683,1773161475728,-2221.92,0.00019726,2]
[408130684,1773161475738,-500.0,0.00019726,2]
[408130685,1773161475748,-534.95,0.00019726,2]
[408130686,1773161475758,-500.0,0.00019726,2]
[408130687,1773161475768,-3162.68,0.00019726,2]
[408130688,1773161475778,-976.5,0.00019726,2]
[408130689,1773161475788,-518.38903354,0.00019726,2]
[408130690,1773161475798,-2221.92,0.00019726,2]
[408130691,1773161475808,-500.0,0.00019726,2]
[408130692,1773161475817,-296.68133915,0.00019726,2]
[408130693,1773161475828,-534.95,0.00019726,2]
[408130694,1773161475838,-976.5,0.00019726,2]
[408130695,1773161475848,-3162.68,0.00019726,2]
[408130696,1773161475857,-2221.92,0.00019726,2]
[408130697,1773161475867,-500.0,0.00019726,2]
[408130698,1773161475878,-534.95,0.00019726,2]
[408130699,1773161475888,-3162.68,0.00019726,2]
[408130700,1773161475898,-747.63,0.00019726,2]
[408130701,1773161475908,-500.0,0.00019726,2]
[408130702,1773161475919,-534.95,0.00019726,2]
[408130703,1773161475929,-3162.68,0.00019726,2]
[408130704,1773161475939,-747.63,0.00019726,2]
[408130705,1773161475949,-976.5,0.00019726,2]
[408130706,1773161475959,-2221.92,0.00019726,2]
[408130707,1773161475970,-500.0,0.00019726,2]
[408130708,1773161475980,-534.95,0.00019726,2]
[408130709,1773161475990,-3162.68,0.00019726,2]
[408130710,1773161475999,-747.63,0.00019726,2]
[408130711,1773161476008,-976.5,0.00019726,2]
[408130712,1773161476018,-2221.92,0.00019726,2]
[408130713,1773161476027,-3162.68,0.00019726,2]
[408130714,1773161476036,-534.95,0.00019726,2]
[408130715,1773161476045,-2221.92,0.00019726,2]
[408130716,1773161476054,-747.63,0.00019726,2]
[408130717,1773161476063,-976.5,0.00019726,2]
[408130718,1773161476072,-500.0,0.00019726,2]
[408130719,1773161476082,-3162.68,0.00019726,2]
[408130720,1773161476092,-534.95,0.00019726,2]
[408130721,1773161476101,-2221.92076322,0.00019726,2]
[408130722,1773161476111,-747.63,0.00019726,2]
[408130723,1773161476121,-976.5,0.00019726,2]
[408130724,1773161476131,-69.81184884,0.00019726,2]
[408130725,1773161476264,-34730.22630409,0.0001651,2]
[408130726,1773161476276,-76211.72148426,0.0001651,2]
[408130727,1773161476287,-46271.50925859,0.0001651,2]
[408130728,1773161476299,-95818.89575306,0.0001651,2]
[408130729,1773161476310,-5382.37142238,0.00019626,2]
[408130730,1773161476319,-430.18815116,0.00019726,2]
[408130731,1773161476329,-3162.68,0.00019726,2]
[408130732,1773161476338,-747.63,0.00019726,2]
[408130733,1773161476348,-500.0,0.00019726,2]
[408130734,1773161476358,-534.95,0.00019726,2]
[408130735,1773161476367,-976.5,0.00019726,2]
[408130736,1773161476376,-3162.68,0.00019726,2]
[408130737,1773161476387,-535.34885314,0.00019726,2]
[408130738,1773161476396,-747.63,0.00019726,2]
[408130739,1773161476407,-534.95,0.00019726,2]
[408130740,1773161476416,-500.0,0.00019726,2]
[408130741,1773161476426,-500.0,0.00019726,2]
[408130742,1773161476436,-3162.68,0.00019726,2]
[408130743,1773161476446,-976.5,0.00019726,2]
[408130744,1773161476456,-747.63,0.00019726,2]
[408130745,1773161476466,-534.95,0.00019726,2]
[408130746,1773161476476,-500.0,0.00019726,2]
[408130747,1773161476485,-500.0,0.00019726,2]
[408130748,1773161476495,-3162.68,0.00019726,2]
[408130749,1773161476505,-976.5,0.00019726,2]
[408130750,1773161476515,-747.71,0.00019726,2]
[408130751,1773161476524,-534.95,0.00019726,2]
[408130752,1773161476535,-500.0,0.00019726,2]
[408130753,1773161476544,-500.0,0.00019726,2]
[408130754,1773161476554,-500.0,0.00019726,2]
[408130755,1773161476564,-3162.68,0.00019726,2]
[408130756,1773161476573,-976.5,0.00019726,2]
[408130757,1773161476583,-534.95,0.00019726,2]
[408130758,1773161476593,-637.34320195,0.00019726,2]
[408130759,1773161476602,-500.0,0.00019726,2]
[408130760,1773161476612,-535.13009842,0.00019726,2]
[408130761,1773161476621,-500.0,0.00019726,2]
[408130762,1773161476631,-3162.68,0.00019726,2]
[408130763,1773161476640,-500.0,0.00019726,2]
[408130764,1773161476650,-976.5,0.00019726,2]
[408130765,1773161476659,-3162.68,0.00019726,2]
[408130766,1773161476669,-500.0,0.00019726,2]
[408130767,1773161476678,-976.5,0.00019726,2]
[408130768,1773161476688,-500.0,0.00019726,2]
[408130769,1773161476697,-500.0,0.00019726,2]
[408130770,1773161476706,-3162.68,0.00019726,2]
[408130771,1773161476716,-976.5,0.00019726,2]
[408130772,1773161476725,-500.0,0.00019726,2]
[408130773,1773161476735,-600.19919286,0.00019726,2]
[408130774,1773161476744,-3162.68,0.00019726,2]
[408130775,1773161476753,-515.72640374,0.00019726,2]
[408130776,1773161476763,-976.5,0.00019726,2]
[408130777,1773161476772,-500.0,0.00019726,2]
[408130778,1773161476781,-3162.68,0.00019726,2]
[408130779,1773161476791,-976.5,0.00019726,2]
[408130780,1773161476896,-500.0,0.00019726,2]
[408130781,1773161476906,-3162.68,0.00019726,2]
[408130782,1773161476916,-976.5,0.00019726,2]
[408130783,1773161476926,-500.0,0.00019726,2]
[408130784,1773161476936,-3162.87652799,0.00019726,2]
[408130785,1773161476946,-509.89516821,0.00019726,2]
[408130786,1773161476959,-500.0,0.00019726,2]
[408130787,1773161476969,-976.5,0.00019726,2]
[408130788,1773161476979,-500.0,0.00019726,2]
[408130789,1773161476989,-548.71552125,0.00019726,2]
[408130790,1773161476998,-976.5,0.00019726,2]
[408130791,1773161477007,-500.0,0.00019726,2]
[408130792,1773161477017,-656.77,0.00019726,2]
[408130793,1773161477027,-976.5,0.00019726,2]
[408130794,1773161477037,-500.0,0.00019726,2]
[408130795,1773161477048,-656.77,0.00019726,2]
[408130796,1773161477059,-976.5,0.00019726,2]
[408130797,1773161477070,-500.0,0.00019726,2]
[408130798,1773161477081,-656.77,0.00019726,2]
[408130799,1773161477093,-976.5,0.00019726,2]
[408130800,1773161477104,-656.77,0.00019726,2]
[408130801,1773161477115,-500.0,0.00019726,2]
[408130802,1773161477127,-976.5,0.00019726,2]
[408130803,1773161477136,-500.0,0.00019726,2]
[408130804,1773161477145,-656.77,0.00019726,2]
[408130805,1773161477156,-1119.61,0.00019726,2]
[408130806,1773161477167,-976.51095104,0.00019726,2]
[408130807,1773161477176,-656.77,0.00019726,2]
[408130808,1773161477187,-500.0,0.00019726,2]
[408130809,1773161477196,-1119.61,0.00019726,2]
[408130810,1773161477207,-500.0,0.00019726,2]
[408130811,1773161477217,-656.77,0.00019726,2]
[408130812,1773161477227,-1119.61,0.00019726,2]
[408130813,1773161477236,-500.0,0.00019726,2]
[408130814,1773161477246,-500.0,0.00019726,2]
[408130815,1773161477255,-500.0,0.00019726,2]
[408130816,1773161477264,-656.77,0.00019726,2]
[408130817,1773161477274,-526.84156181,0.00019726,2]
[408130818,1773161477284,-821.6,0.00019726,2]
[408130819,1773161477293,-500.0,0.00019726,2]
[408130820,1773161477302,-500.0,0.00019726,2]
[408130821,1773161477312,-656.77,0.00019726,2]
[408130822,1773161477321,-500.0,0.00019726,2]
[408130823,1773161477330,-821.6,0.00019726,2]
[408130824,1773161477341,-1119.61,0.00019726,2]
[408130825,1773161477350,-500.0,0.00019726,2]
[408130826,1773161477359,-656.77,0.00019726,2]
[408130827,1773161477368,-821.6,0.00019726,2]
[408130828,1773161477377,-500.0,0.00019726,2]
[408130829,1773161477388,-1119.61,0.00019726,2]
[408130830,1773161477398,-500.0,0.00019726,2]
[408130831,1773161477407,-821.6,0.00019726,2]
[408130832,1773161477417,-656.77,0.00019726,2]
[408130833,1773161477429,-500.0,0.00019726,2]
[408130834,1773161477439,-1119.61,0.00019726,2]
[408130835,1773161477449,-500.0,0.00019726,2]
[408130836,1773161477458,-821.6,0.00019726,2]
[408130837,1773161477469,-656.77,0.00019726,2]
[408130838,1773161477479,-1119.61,0.00019726,2]
[408130839,1773161477490,-500.0,0.00019726,2]
[408130840,1773161477500,-500.0,0.00019726,2]
[408130841,1773161477510,-821.6,0.00019726,2]
[408130842,1773161477520,-656.77,0.00019726,2]
[408130843,1773161477531,-1119.61,0.00019726,2]
[408130844,1773161477541,-500.0,0.00019726,2]
[408130845,1773161477551,-500.0,0.00019726,2]
[408130846,1773161477561,-821.6,0.00019726,2]
[408130847,1773161477571,-1119.61,0.00019726,2]
[408130848,1773161477580,-656.77,0.00019726,2]
[408130849,1773161477590,-500.0,0.00019726,2]
[408130850,1773161477600,-785.74358899,0.00019726,2]
[408130851,1773161477655,-35.85641101,0.00019726,2]
[408130852,1773161477666,-525.55426227,0.00019726,2]
[408130853,1773161477678,-594.05573773,0.00019726,2]
[408130854,1773161477688,-656.77,0.00019726,2]
[408130855,1773161477699,-500.0,0.00019726,2]
[408130856,1773161477710,-500.0,0.00019726,2]
[408130857,1773161477723,-821.6,0.00019726,2]
[408130858,1773161477733,-500.0,0.00019726,2]
[408130859,1773161477744,-1119.61,0.00019726,2]
[408130860,1773161477753,-656.77,0.00019726,2]
[408130861,1773161477762,-500.0,0.00019726,2]
[408130862,1773161477772,-500.0,0.00019726,2]
[408130863,1773161477781,-821.6,0.00019726,2]
[408130864,1773161477791,-500.0,0.00019726,2]
[408130865,1773161477801,-500.0,0.00019726,2]
[408130866,1773161477811,-1119.61,0.00019726,2]
[408130867,1773161477822,-656.77,0.00019726,2]
[408130868,1773161477832,-500.0,0.00019726,2]
[408130869,1773161477842,-178.8061921,0.00019726,2]
[408130870,1773161477859,-321.1938079,0.00019726,2]
[408130871,1773161477870,-191.19801481,0.00019726,2]
[408130872,1773161477880,-500.0,0.00019726,2]
[408130873,1773161477891,-821.6,0.00019726,2]
[408130874,1773161477903,-1119.61,0.00019726,2]
[408130875,1773161477915,-656.77,0.00019726,2]
[408130876,1773161477925,-367.44574548,0.00019726,2]
[408130877,1773161477939,-564.80530208,0.00019726,2]
[408130878,1773161477950,-500.0,0.00019726,2]
[408130879,1773161477959,-821.6,0.00019726,2]
[408130880,1773161477976,-682.56236915,0.00019726,2]
[408130881,1773161478005,-437.04763085,0.00019726,2]
[408130882,1773161478030,-500.0,0.00019726,2]
[408130883,1773161478055,-656.77,0.00019726,2]
[408130884,1773161478075,-500.0,0.00019726,2]
[408130885,1773161478097,-500.0,0.00019726,2]
[408130886,1773161478120,-656.77,0.00019726,2]
[408130887,1773161478146,-821.6,0.00019726,2]
[408130888,1773161478168,-1119.61,0.00019726,2]
[408130889,1773161478193,-287.20236915,0.00019726,2]
[408130890,1773161478232,-212.79763085,0.00019726,2]
[408130891,1773161478260,-287.20236915,0.00019726,2]
[408130892,1773161478521,-369.56763085,0.00019726,2]
[408130893,1773161478532,-500.0,0.00019726,2]
[408130894,1773161478543,-87.92196915,0.00019726,2]
[408130896,1773161994658,492.11468922,0.0001199,2]
[408130899,1773162137226,165.24,0.00013256,2]
[408130900,1773162157375,7403.88347903,9.5e-05,3]
[408130920,1773162290052,-600.18,0.00015,30]
[408130921,1773162290403,-577.25371602,0.00029041,120]
[408130922,1773162290435,-485.83038139,0.00031915,30]
[408130923,1773162290465,-160.0,0.00032,30]
[408130924,1773162290499,-250.0,0.00034256,36]
[408130925,1773162290529,-3039.0132,0.00035,120]
[408130926,1773162290569,-4231.4442444,0.00037403,63]
[408130927,1773162290598,-2218.3,0.00038329,120]
[408130928,1773162290627,-2003.78829004,0.00038329,120]
[408130929,1773162290655,-166.39219877,0.00038589,120]
[408130930,1773162290684,-160.2304848,0.00038589,120]
[408130931,1773162290712,-158.47336252,0.00038589,120]
[408130932,1773162290742,-250.0,0.0003921,58]
[408130933,1773162290776,-1317.408,0.00039808,56]
[408130934,1773162290809,-1122.74791531,0.00040945,50]
[408130935,1773162290837,-1063.14091459,0.00040945,50]
[408130936,1773162290864,-1144.84985857,0.00040945,50]
[408130937,1773162290891,-1113.80081041,0.00040945,50]
[408130938,1773162290918,-1096.51913806,0.00040945,50]
[408130939,1773162290944,-1008.93831606,0.00040945,50]
[408130940,1773162290972,-1097.85308209,0.00040945,50]
[408130941,1773162290999,-1067.99855438,0.00040945,50]
[408130942,1773162291028,-219013.0,0.0004095,60]
[408130943,1773162291056,-3000.0,0.00041,120]
[408130944,1773162291085,-500.0,0.00042,120]
[408130945,1773162291112,-150.0,0.00042173,120]
[408130946,1773162291140,-219013.0,0.000423,60]
[408130947,1773162291167,-500.0,0.00042438,120]
[408130948,1773162291210,-500.0,0.000425,120]
[408130949,1773162291238,-500.0,0.00042575,120]
[408130950,1773162291637,-500.0,0.00042712,120]
[408130951,1773162291666,-3806.44466531,0.00042722,76]
[408130952,1773162291694,-361.8,0.000428,90]
[408130953,1773162291777,-500.0,0.00042849,120]
[408130954,1773162291805,-500.0,0.00042986,120]
[408130955,1773162291832,-500.0,0.00043,120]
[408130956,1773162291860,-250.0,0.00043068,120]
[408130957,1773162291886,-250.0,0.00043068,120]
[408130958,1773162291913,-250.0,0.00043068,120]
[408130959,1773162291940,-250.0,0.00043068,120]
[408130960,1773162291966,-250.0,0.00043068,120]
[408130961,1773162291993,-250.0,0.00043068,120]
[408130962,1773162292020,-250.0,0.00043068,120]
[408130963,1773162292046,-291.00002808,0.00043123,120]
[408130964,1773162292073,-500.0,0.000435,120]
[408130965,1773162292101,-219013.0,0.0004365,60]
[408130966,1773162292128,-500.0,0.00043835,120]
[408130967,1773162292154,-809.71674771,0.00043836,30]
[408130968,1773162292181,-800.0,0.00043836,30]
[408130969,1773162292209,-1019.28920229,0.00043856,50]
[408130970,1773162292237,-1143.26394174,0.00043856,50]
[408130971,1773162292264,-1123.47718988,0.00043856,50]
[408130972,1773162292290,-1144.86506903,0.00043856,50]
[408130973,1773162292316,-1143.22961368,0.00043856,50]
[408130974,1773162292343,-2500.0,0.000439,50]
[408130975,1773162292370,-189.96715036,0.00043997,119]
[408130976,1773162292400,-563.504567,0.00044,57]
[408130977,1773162292427,-500.0,0.00044,120]
[408130978,1773162292456,-759.39,0.00044178,120]
[408130979,1773162292483,-500.0,0.00044246,120]
[408130980,1773162292509,-150.0,0.00044281,120]
[408130981,1773162292537,-1500.0,0.000444,50]
[408130982,1773162292563,-759.39,0.00044452,120]
[408130983,1773162292589,-500.0,0.000445,120]
[408130984,1773162292617,-500.0,0.00044657,120]
[408130985,1773162292644,-759.39,0.00044726,120]
[408130986,1773162292672,-1500.0,0.000449,50]
[408130987,1773162292700,-2500.0,0.00045,120]
[408130988,1773162292728,-500.0,0.00045,120]
[408130989,1773162292755,-759.39,0.00045,120]
[408130990,1773162292781,-219013.0,0.00045,60]
[408130991,1773162292807,-1964.92393094,0.00045,120]
[408130992,1773162292834,-500.0,0.00045068,120]
[408130993,1773162292861,-2829.98,0.00045205,120]
[408130994,1773162292887,-205.85838218,0.00045224,120]
[408130995,1773162292912,-759.39,0.00045274,120]
[408130996,1773162292940,-1500.0,0.000454,50]
[408130997,1773162292966,-1027.6734182,0.00045424,50]
[408130998,1773162292993,-1389.17589917,0.00045424,50]
[408130999,1773162293021,-2829.98,0.00045479,120]
[408131000,1773162293048,-500.0,0.00045479,120]
[408131001,1773162293073,-500.0,0.000455,120]
[408131002,1773162293099,-759.39,0.00045548,120]
[408131003,1773162293126,-1290.83,0.0004558,120]
[408131004,1773162293154,-7611.63696244,0.00045671,120]
[408131005,1773162293182,-2829.98,0.00045753,120]
[408131006,1773162293210,-150.0,0.00045785,120]
[408131007,1773162293236,-759.39,0.00045822,120]
[408131008,1773162293264,-150.0,0.00045848,120]
[408131009,1773162293290,-500.0,0.00045854,60]
[408131010,1773162293316,-500.0,0.00045854,60]
[408131011,1773162293343,-500.0,0.00045854,60]
[408131012,1773162293368,-500.0,0.0004589,120]
[408131013,1773162293395,-1500.0,0.000459,50]
[408131014,1773162293427,-150.0,0.00045994,120]
[408131015,1773162293454,-500.0,0.00045999,90]
[408131016,1773162293480,-187.88530125,0.00045999,90]
[408131017,1773162293507,-250.0,0.00045999,90]
[408131018,1773162293534,-1328.27659266,0.00045999,90]
[408131019,1773162293561,-8058.63626263,0.00045999,90]
[408131020,1773162293588,-500.0,0.00045999,90]
[408131021,1773162293614,-670.58624095,0.00045999,90]
[408131022,1773162293640,-1500.0,0.00045999,90]
[408131023,1773162293667,-1500.0,0.00045999,90]
[408131024,1773162293694,-500.0,0.00045999,90]
[408131025,1773162293720,-3000.0,0.00045999,90]
[408131026,1773162293747,-151.0,0.00045999,90]
[408131027,1773162293773,-1506.77280813,0.00045999,90]
[408131028,1773162293800,-500.0,0.00045999,90]
[408131029,1773162293827,-10000.0,0.00045999,90]
[408131030,1773162293853,-250.0,0.00045999,90]
[408131031,1773162293879,-151.0,0.00045999,90]
[408131032,1773162293906,-1000.0,0.00045999,90]
[408131033,1773162293933,-7059.21126331,0.00045999,90]
[408131034,1773162293966,-194.72792766,0.00045999,90]
[408131035,1773162293994,-1500.0,0.00045999,90]
[408131036,1773162294020,-644.79446246,0.00045999,90]
[408131037,1773162294049,-2500.0,0.00046,120]
[408131038,1773162294075,-500.0,0.00046,120]
[408131039,1773162294105,-2829.98,0.00046027,120]
[408131040,1773162294132,-759.39,0.00046096,120]
[408131041,1773162294162,-150.0,0.00046295,120]
[408131042,1773162294189,-161.6222,0.000463,60]
[408131043,1773162294218,-204.83861542,0.00046301,60]
[408131044,1773162294247,-500.0,0.00046301,60]
[408131045,1773162294274,-500.0,0.00046301,60]
[408131046,1773162294301,-200.76649827,0.00046301,60]
[408131047,1773162294329,-500.0,0.00046301,60]
[408131048,1773162294355,-500.0,0.00046301,60]
[408131049,1773162294383,-2829.98,0.00046301,120]
[408131050,1773162294415,-500.0,0.00046301,120]
[408131051,1773162294724,-150.0,0.00046301,60]
[408131052,1773162294752,-500.0,0.00046301,60]
[408131053,1773162294779,-500.0,0.00046301,60]
[408131054,1773162294808,-219013.0,0.0004635,60]
[408131055,1773162294838,-500.0,0.00046356,60]
[408131056,1773162294866,-500.0,0.00046356,60]
[408131057,1773162294895,-600.0,0.00046356,60]
[408131058,1773162294925,-500.0,0.00046356,60]
[408131059,1773162294953,-150.0,0.00046356,60]
[408131060,1773162294982,-500.0,0.00046356,60]
[408131061,1773162295012,-505.89870401,0.00046356,60]
[408131062,1773162295040,-759.39,0.0004637,120]
[408131063,1773162295072,-919.01,0.00046388,30]
[408131064,1773162295099,-572.51094001,0.00046388,30]
[408131065,1773162295128,-150.0,0.000464,33]
[408131066,1773162295164,-150.0,0.000464,33]
[408131067,1773162295208,-150.0,0.000464,33]
[408131068,1773162295238,-241.8,0.000464,101]
[408131069,1773162295265,-161.2,0.000464,101]
[408131070,1773162295292,-813.63365,0.000464,50]
[408131071,1773162295318,-1500.0,0.000464,50]
[408131072,1773162295344,-500.0,0.00046402,60]
[408131073,1773162295370,-500.0,0.00046411,60]
[408131074,1773162295402,-508.22060755,0.00046411,60]
[408131075,1773162295431,-441.10103319,0.00046411,60]
[408131076,1773162295460,-161.56393612,0.00046411,60]
[408131077,1773162295488,-500.0,0.00046411,60]
[408131078,1773162295516,-500.0,0.00046465,60]
[408131079,1773162295543,-500.0,0.00046465,60]
[408131080,1773162295570,-500.0,0.00046486,30]
[408131081,1773162295596,-187.78006525,0.00046486,30]
[408131082,1773162295623,-250.0,0.00046486,30]
[408131083,1773162295650,-1280.88388878,0.00046486,30]
[408131084,1773162295677,-8000.0,0.00046486,30]
[408131085,1773162295705,-646.65982734,0.00046486,30]
[408131086,1773162295733,-500.0,0.00046486,30]
[408131087,1773162295763,-1500.0,0.00046486,30]
[408131088,1773162295792,-1500.0,0.00046486,30]
[408131089,1773162295819,-500.0,0.00046486,30]
[408131090,1773162295846,-3000.0,0.00046486,30]
[408131091,1773162295873,-151.0,0.00046486,30]
[408131092,1773162295900,-1500.0,0.00046486,30]
[408131093,1773162295927,-500.0,0.00046486,30]
[408131094,1773162295954,-250.0,0.00046486,30]
[408131095,1773162295984,-10000.0,0.00046486,30]
[408131096,1773162296011,-151.0,0.00046486,30]
[408131097,1773162296038,-1000.0,0.00046486,30]
[408131098,1773162296064,-187.78006525,0.00046486,30]
[408131099,1773162296090,-1500.0,0.00046486,30]